[Event "Titled Tuesday Blitz December 7 2021"]
[White "Koellner, Ruben Gideon"]
[Black "Rangel, Daniel"]
[WhiteFideId "12993093"]
[BlackFideId "2124475"]
[WhiteElo "2565"]
[BlackElo "2187"]
[Result "1-0"]
[Round "11"]
[TimeControl "180+1"]
[Date "2021.12.07"]
[WhiteClock "0:00:14"]
[BlackClock "0:00:03"]

1. d4 {[%clk 0:03:00]}  Nf6 {[%clk 0:02:58]} 2. Bg5 {[%clk 0:02:56]}  g6 {[%clk 0:02:56]} 3. Bxf6 {[%clk 0:02:55]}  exf6 {[%clk 0:02:57]} 4. g3 {[%clk 0:02:56]}  Bg7 {[%clk 0:02:57]} 5. Bg2 {[%clk 0:02:56]}  O-O {[%clk 0:02:58]} 6. e3 {[%clk 0:02:57]}  d6 {[%clk 0:02:58]} 7. Ne2 {[%clk 0:02:58]}  c6 {[%clk 0:02:58]} 8. O-O {[%clk 0:02:59]}  h5 {[%clk 0:02:59]} 9. c4 {[%clk 0:03:00]}  h4 {[%clk 0:02:58]} 10. Nbc3 {[%clk 0:03:00]}  Re8 {[%clk 0:02:54]} 11. b4 {[%clk 0:03:00]}  Bg4 {[%clk 0:02:49]} 12. Qd3 {[%clk 0:02:58]}  Nd7 {[%clk 0:02:34]} 13. a4 {[%clk 0:02:57]}  Rc8 {[%clk 0:02:29]} 14. Rfb1 {[%clk 0:02:55]}  Nf8 {[%clk 0:01:56]} 15. b5 {[%clk 0:02:52]}  Ne6 {[%clk 0:01:51]} 16. a5 {[%clk 0:02:51]}  Ng5 {[%clk 0:01:44]} 17. Kh1 {[%clk 0:02:08]}  h3 {[%clk 0:01:19]} 18. Bf1 {[%clk 0:02:08]}  d5 {[%clk 0:01:13]} 19. c5 {[%clk 0:02:03]}  Bf5 {[%clk 0:01:02]} 20. Qd1 {[%clk 0:01:59]}  Bxb1 {[%clk 0:00:57]} 21. Qxb1 {[%clk 0:02:00]}  Rb8 {[%clk 0:00:53]} 22. b6 {[%clk 0:01:56]}  a6 {[%clk 0:00:52]} 23. Nf4 {[%clk 0:01:55]}  Qe7 {[%clk 0:00:51]} 24. Nxh3 {[%clk 0:01:53]}  Ne4 {[%clk 0:00:44]} 25. Nxe4 {[%clk 0:01:50]}  Qxe4+ {[%clk 0:00:45]} 26. Qxe4 {[%clk 0:01:50]}  Rxe4 {[%clk 0:00:46]} 27. Bd3 {[%clk 0:01:49]}  Re7 {[%clk 0:00:46]} 28. Kg2 {[%clk 0:01:50]}  f5 {[%clk 0:00:46]} 29. Nf4 {[%clk 0:01:47]}  Bh6 {[%clk 0:00:46]} 30. Ne2 {[%clk 0:01:47]}  Rbe8 {[%clk 0:00:39]} 31. Rd1 {[%clk 0:01:41]}  Kg7 {[%clk 0:00:39]} 32. Nc3 {[%clk 0:01:39]}  Rd8 {[%clk 0:00:38]} 33. Na2 {[%clk 0:01:39]}  Bg5 {[%clk 0:00:36]} 34. Nb4 {[%clk 0:01:39]}  Ra8 {[%clk 0:00:34]} 35. h4 {[%clk 0:01:36]}  Bh6 {[%clk 0:00:33]} 36. Kf3 {[%clk 0:01:34]}  f6 {[%clk 0:00:33]} 37. Rh1 {[%clk 0:01:32]}  Rae8 {[%clk 0:00:27]} 38. h5 {[%clk 0:01:22]}  Bxe3 {[%clk 0:00:26]} 39. fxe3 {[%clk 0:01:21]}  Rxe3+ {[%clk 0:00:26]} 40. Kf2 {[%clk 0:01:21]}  g5 {[%clk 0:00:24]} 41. h6+ {[%clk 0:01:17]}  Kh8 {[%clk 0:00:24]} 42. Bxf5 {[%clk 0:00:59]}  Re2+ {[%clk 0:00:24]} 43. Kf3 {[%clk 0:00:55]}  R8e3+ {[%clk 0:00:22]} 44. Kg4 {[%clk 0:00:55]}  Rg2 {[%clk 0:00:18]} 45. Bc8 {[%clk 0:00:43]}  Rgxg3+ {[%clk 0:00:16]} 46. Kf5 {[%clk 0:00:41]}  Rgf3+ {[%clk 0:00:16]} 47. Kg6 {[%clk 0:00:41]}  g4 {[%clk 0:00:16]} 48. Bxb7 {[%clk 0:00:31]}  g3 {[%clk 0:00:17]} 49. Bxc6 {[%clk 0:00:27]}  g2 {[%clk 0:00:17]} 50. Rg1 {[%clk 0:00:26]}  Rg3+ {[%clk 0:00:18]} 51. Kf7 {[%clk 0:00:24]}  Rb3 {[%clk 0:00:08]} 52. Nxd5 {[%clk 0:00:21]}  f5 {[%clk 0:00:06]} 53. Nf6 {[%clk 0:00:17]}  f4 {[%clk 0:00:06]} 54. Rxg2 {[%clk 0:00:16]}  Rxg2 {[%clk 0:00:06]} 55. Bxg2 {[%clk 0:00:17]}  f3 {[%clk 0:00:06]} 56. Bxf3 {[%clk 0:00:17]}  Rxf3 {[%clk 0:00:07]} 57. c6 {[%clk 0:00:18]}  Rc3 {[%clk 0:00:07]} 58. c7 {[%clk 0:00:19]}  Rc6 {[%clk 0:00:05]} 59. Nd5 {[%clk 0:00:15]}  Rc2 {[%clk 0:00:01]} 60. Ne7 {[%clk 0:00:15]}  Rc6 {[%clk 0:00:02]} 61. Nxc6 {[%clk 0:00:14]}  Kh7 {[%clk 0:00:03]} 62. Ne5 {[%clk 0:00:14]} 1-0


[Site "https://www.chess.com"]

[Event "Titled Tuesday Blitz December 7 2021"]
[White "Koepke, Christian"]
[Black "Ronka, Erik"]
[WhiteFideId "4655737"]
[BlackFideId "505080"]
[WhiteElo "2180"]
[BlackElo "2264"]
[Result "1-0"]
[Round "11"]
[TimeControl "180+1"]
[Date "2021.12.07"]
[WhiteClock "0:00:07"]
[BlackClock "0:00:01"]

1. e4 {[%clk 0:03:00]}  c6 {[%clk 0:02:58]} 2. d4 {[%clk 0:03:00]}  d5 {[%clk 0:02:59]} 3. exd5 {[%clk 0:03:01]}  cxd5 {[%clk 0:03:00]} 4. Bd3 {[%clk 0:03:00]}  Nf6 {[%clk 0:03:00]} 5. c3 {[%clk 0:03:00]}  Nc6 {[%clk 0:03:00]} 6. Bf4 {[%clk 0:02:59]}  Bg4 {[%clk 0:03:01]} 7. Qb3 {[%clk 0:02:59]}  Qc8 {[%clk 0:03:00]} 8. Nd2 {[%clk 0:02:59]}  Bh5 {[%clk 0:03:01]} 9. Ngf3 {[%clk 0:02:56]}  Bg6 {[%clk 0:03:01]} 10. Bxg6 {[%clk 0:02:56]}  hxg6 {[%clk 0:03:02]} 11. O-O {[%clk 0:02:54]}  e6 {[%clk 0:03:02]} 12. h4 {[%clk 0:02:53]}  Qd7 {[%clk 0:02:54]} 13. g3 {[%clk 0:02:50]}  Rc8 {[%clk 0:02:49]} 14. Rfe1 {[%clk 0:02:46]}  Bd6 {[%clk 0:02:44]} 15. Ne5 {[%clk 0:02:40]}  Bxe5 {[%clk 0:02:41]} 16. dxe5 {[%clk 0:02:34]}  Ng8 {[%clk 0:02:33]} 17. Nf3 {[%clk 0:02:31]}  Nge7 {[%clk 0:02:28]} 18. Rad1 {[%clk 0:02:25]}  Na5 {[%clk 0:02:23]} 19. Qc2 {[%clk 0:02:22]}  b5 {[%clk 0:02:20]} 20. a3 {[%clk 0:02:21]}  Nc4 {[%clk 0:02:19]} 21. Bg5 {[%clk 0:02:06]}  O-O {[%clk 0:02:05]} 22. Bxe7 {[%clk 0:02:04]}  Qxe7 {[%clk 0:02:05]} 23. Nd4 {[%clk 0:02:00]}  Rb8 {[%clk 0:01:57]} 24. Qe2 {[%clk 0:01:50]}  Rfc8 {[%clk 0:01:54]} 25. h5 {[%clk 0:01:49]}  gxh5 {[%clk 0:01:53]} 26. Qxh5 {[%clk 0:01:48]}  g6 {[%clk 0:01:47]} 27. Qe2 {[%clk 0:01:40]}  Kg7 {[%clk 0:01:45]} 28. Kg2 {[%clk 0:01:41]}  Qc5 {[%clk 0:01:34]} 29. Rh1 {[%clk 0:01:27]}  Rh8 {[%clk 0:01:34]} 30. Qf3 {[%clk 0:01:23]}  Nxe5 {[%clk 0:01:30]} 31. Qe3 {[%clk 0:01:18]}  Nd7 {[%clk 0:01:19]} 32. b4 {[%clk 0:00:31]}  Qb6 {[%clk 0:01:09]} 33. Qg5 {[%clk 0:00:22]}  Rxh1 {[%clk 0:01:01]} 34. Rxh1 {[%clk 0:00:21]}  Rh8 {[%clk 0:00:48]} 35. Rxh8 {[%clk 0:00:20]}  Kxh8 {[%clk 0:00:49]} 36. Qe7 {[%clk 0:00:19]}  Nb8 {[%clk 0:00:06]} 37. Qf8+ {[%clk 0:00:16]}  Kh7 {[%clk 0:00:06]} 38. Qxf7+ {[%clk 0:00:16]}  Kh6 {[%clk 0:00:06]} 39. Nxe6 {[%clk 0:00:16]}  Qd6 {[%clk 0:00:04]} 40. g4 {[%clk 0:00:07]}  g5 {[%clk 0:00:01]} 41. Qg7# {[%clk 0:00:07]} 1-0


[Site "https://www.chess.com"]

[Event "Titled Tuesday Blitz December 7 2021"]
[White "Krutko, Anatoly"]
[Black "Hakemi, Arman"]
[WhiteFideId "4185862"]
[BlackFideId "22520805"]
[WhiteElo "2378"]
[BlackElo "2208"]
[Result "0-1"]
[Round "11"]
[TimeControl "180+1"]
[Date "2021.12.07"]
[WhiteClock "0:02:17"]
[BlackClock "0:02:05"]

1. d4 {[%clk 0:02:59]}  Nf6 {[%clk 0:02:59]} 2. Nc3 {[%clk 0:02:59]}  d5 {[%clk 0:02:58]} 3. Bg5 {[%clk 0:02:59]}  Nbd7 {[%clk 0:02:55]} 4. e3 {[%clk 0:03:00]}  g6 {[%clk 0:02:55]} 5. f4 {[%clk 0:03:00]}  Bg7 {[%clk 0:02:55]} 6. Nf3 {[%clk 0:03:00]}  O-O {[%clk 0:02:56]} 7. Bd3 {[%clk 0:03:01]}  c5 {[%clk 0:02:55]} 8. O-O {[%clk 0:03:01]}  c4 {[%clk 0:02:53]} 9. Be2 {[%clk 0:03:01]}  h6 {[%clk 0:02:53]} 10. Bh4 {[%clk 0:03:01]}  e6 {[%clk 0:02:52]} 11. Ne5 {[%clk 0:03:01]}  a6 {[%clk 0:02:42]} 12. g4 {[%clk 0:02:59]}  b5 {[%clk 0:02:39]} 13. Qe1 {[%clk 0:02:50]}  b4 {[%clk 0:02:38]} 14. Nd1 {[%clk 0:02:50]}  Qb6 {[%clk 0:02:30]} 15. Nf2 {[%clk 0:02:50]}  a5 {[%clk 0:02:26]} 16. Bg3 {[%clk 0:02:50]}  a4 {[%clk 0:02:24]} 17. h4 {[%clk 0:02:48]}  Nxe5 {[%clk 0:02:16]} 18. fxe5 {[%clk 0:02:47]}  Nd7 {[%clk 0:02:16]} 19. c3 {[%clk 0:02:33]}  a3 {[%clk 0:02:15]} 20. bxa3 {[%clk 0:02:24]}  Rxa3 {[%clk 0:02:10]} 21. cxb4 {[%clk 0:02:19]}  Rxe3 {[%clk 0:02:09]} 22. Bf4 {[%clk 0:02:19]}  Qxd4 {[%clk 0:02:04]} 23. Bxe3 {[%clk 0:02:17]}  Qxe3 {[%clk 0:02:05]} 0-1


[Site "https://www.chess.com"]

[Event "Titled Tuesday Blitz December 7 2021"]
[White "Malka, Samuel"]
[Black "Piesik, Piotr"]
[WhiteFideId "20643675"]
[BlackFideId "1136194"]
[WhiteElo "2466"]
[BlackElo "2336"]
[Result "1-0"]
[Round "11"]
[TimeControl "180+1"]
[Date "2021.12.07"]
[WhiteClock "0:00:38"]
[BlackClock "0:01:52"]

1. d4 {[%clk 0:03:00]}  c5 {[%clk 0:02:59]} 2. d5 {[%clk 0:03:00]}  e5 {[%clk 0:02:59]} 3. c4 {[%clk 0:03:00]}  d6 {[%clk 0:02:59]} 4. Nc3 {[%clk 0:03:01]}  Be7 {[%clk 0:03:00]} 5. g3 {[%clk 0:02:59]}  Bg5 {[%clk 0:02:59]} 6. e3 {[%clk 0:02:59]}  f5 {[%clk 0:02:59]} 7. Bh3 {[%clk 0:02:40]}  Ne7 {[%clk 0:02:56]} 8. f4 {[%clk 0:02:38]}  Bf6 {[%clk 0:02:56]} 9. fxe5 {[%clk 0:02:35]}  Bxe5 {[%clk 0:02:55]} 10. Nf3 {[%clk 0:02:35]}  Bf6 {[%clk 0:02:54]} 11. O-O {[%clk 0:02:30]}  O-O {[%clk 0:02:54]} 12. Qd3 {[%clk 0:02:18]}  Nd7 {[%clk 0:02:52]} 13. Bd2 {[%clk 0:02:01]}  a6 {[%clk 0:02:43]} 14. e4 {[%clk 0:01:59]}  Ne5 {[%clk 0:02:39]} 15. Nxe5 {[%clk 0:01:51]}  Bxe5 {[%clk 0:02:40]} 16. exf5 {[%clk 0:01:46]}  Qe8 {[%clk 0:02:36]} 17. g4 {[%clk 0:01:39]}  Bd7 {[%clk 0:02:28]} 18. a4 {[%clk 0:01:34]}  b5 {[%clk 0:02:27]} 19. axb5 {[%clk 0:01:34]}  axb5 {[%clk 0:02:28]} 20. Rxa8 {[%clk 0:01:34]}  Qxa8 {[%clk 0:02:29]} 21. cxb5 {[%clk 0:01:25]}  Bd4+ {[%clk 0:02:28]} 22. Be3 {[%clk 0:01:15]}  Bxe3+ {[%clk 0:02:24]} 23. Qxe3 {[%clk 0:01:16]}  Nxd5 {[%clk 0:02:24]} 24. Qd3 {[%clk 0:01:01]}  Nxc3 {[%clk 0:02:10]} 25. bxc3 {[%clk 0:01:00]}  d5 {[%clk 0:02:08]} 26. Bg2 {[%clk 0:00:57]}  Kh8 {[%clk 0:02:03]} 27. Bxd5 {[%clk 0:00:56]}  Qa4 {[%clk 0:01:58]} 28. c4 {[%clk 0:00:53]}  Re8 {[%clk 0:01:52]} 29. Bf7 {[%clk 0:00:40]}  Re7 {[%clk 0:01:52]} 30. Qd6 {[%clk 0:00:38]} 1-0


[Site "https://www.chess.com"]

[Event "Titled Tuesday Blitz December 7 2021"]
[White "Matinian, Nikita"]
[Black "Vlassov, Nikolai"]
[WhiteFideId "24129100"]
[BlackFideId "4103360"]
[WhiteElo "2422"]
[BlackElo "2407"]
[Result "1-0"]
[Round "11"]
[TimeControl "180+1"]
[Date "2021.12.07"]
[WhiteClock "0:01:17"]
[BlackClock "0:00:02"]

1. e4 {[%clk 0:03:00]}  c5 {[%clk 0:02:59]} 2. Nc3 {[%clk 0:03:00]}  g6 {[%clk 0:02:59]} 3. f4 {[%clk 0:02:59]}  Bg7 {[%clk 0:02:59]} 4. Nf3 {[%clk 0:02:59]}  Nc6 {[%clk 0:02:59]} 5. Bc4 {[%clk 0:02:59]}  e6 {[%clk 0:02:58]} 6. d3 {[%clk 0:02:58]}  Nge7 {[%clk 0:02:58]} 7. O-O {[%clk 0:02:56]}  d5 {[%clk 0:02:57]} 8. Bb3 {[%clk 0:02:57]}  Rb8 {[%clk 0:02:49]} 9. Qe1 {[%clk 0:02:54]}  b5 {[%clk 0:02:48]} 10. exd5 {[%clk 0:02:54]}  exd5 {[%clk 0:02:45]} 11. Nxd5 {[%clk 0:02:48]}  O-O {[%clk 0:02:44]} 12. Nxe7+ {[%clk 0:02:48]}  Qxe7 {[%clk 0:02:35]} 13. Qxe7 {[%clk 0:02:48]}  Nxe7 {[%clk 0:02:35]} 14. Be3 {[%clk 0:02:48]}  c4 {[%clk 0:02:28]} 15. dxc4 {[%clk 0:02:47]}  bxc4 {[%clk 0:02:28]} 16. Bxc4 {[%clk 0:02:48]}  Bxb2 {[%clk 0:02:27]} 17. Rab1 {[%clk 0:02:40]}  Bf5 {[%clk 0:02:15]} 18. Bb3 {[%clk 0:02:36]}  Bf6 {[%clk 0:02:06]} 19. Bxa7 {[%clk 0:02:35]}  Rbc8 {[%clk 0:02:06]} 20. Bd4 {[%clk 0:02:35]}  Kg7 {[%clk 0:01:51]} 21. Bxf6+ {[%clk 0:02:34]}  Kxf6 {[%clk 0:01:52]} 22. Nd4 {[%clk 0:02:35]}  Be4 {[%clk 0:01:34]} 23. Rbe1 {[%clk 0:02:34]}  Bb7 {[%clk 0:01:29]} 24. g4 {[%clk 0:02:31]}  Nd5 {[%clk 0:01:26]} 25. g5+ {[%clk 0:02:30]}  Kg7 {[%clk 0:01:25]} 26. Re5 {[%clk 0:02:28]}  Rfd8 {[%clk 0:01:24]} 27. f5 {[%clk 0:02:27]}  Rc7 {[%clk 0:01:05]} 28. f6+ {[%clk 0:02:20]}  Kf8 {[%clk 0:01:03]} 29. Rfe1 {[%clk 0:02:15]}  h6 {[%clk 0:00:54]} 30. gxh6 {[%clk 0:02:14]}  Nxf6 {[%clk 0:00:54]} 31. Nb5 {[%clk 0:02:10]}  Rcd7 {[%clk 0:00:49]} 32. h3 {[%clk 0:02:06]}  Kg8 {[%clk 0:00:41]} 33. Rf1 {[%clk 0:02:05]}  Nd5 {[%clk 0:00:31]} 34. c4 {[%clk 0:01:44]}  Nb4 {[%clk 0:00:27]} 35. c5 {[%clk 0:01:37]}  Kh7 {[%clk 0:00:13]} 36. Nd6 {[%clk 0:01:33]}  Nd3 {[%clk 0:00:05]} 37. Nxb7 {[%clk 0:01:16]}  Rxb7 {[%clk 0:00:02]} 38. Rd5 {[%clk 0:01:17]} 1-0


[Site "https://www.chess.com"]

[Event "Titled Tuesday Blitz December 7 2021"]
[White "Mickiewicz, Piotr"]
[Black "Terletsky, Oleg"]
[WhiteFideId "1114891"]
[BlackFideId "14116774"]
[WhiteElo "2266"]
[BlackElo "2055"]
[Result "1-0"]
[Round "11"]
[TimeControl "180+1"]
[Date "2021.12.07"]
[WhiteClock "0:00:20"]
[BlackClock "0:00:02"]

1. e4 {[%clk 0:03:00]}  e5 {[%clk 0:02:47]} 2. Nf3 {[%clk 0:03:00]}  Nc6 {[%clk 0:02:47]} 3. Bb5 {[%clk 0:03:00]}  a6 {[%clk 0:02:46]} 4. Ba4 {[%clk 0:03:00]}  Nf6 {[%clk 0:02:46]} 5. O-O {[%clk 0:03:01]}  Be7 {[%clk 0:02:45]} 6. Qe2 {[%clk 0:03:01]}  b5 {[%clk 0:02:44]} 7. Bb3 {[%clk 0:03:02]}  d6 {[%clk 0:02:44]} 8. c3 {[%clk 0:03:02]}  O-O {[%clk 0:02:44]} 9. Rd1 {[%clk 0:03:00]}  Na5 {[%clk 0:02:37]} 10. Bc2 {[%clk 0:03:00]}  c5 {[%clk 0:02:37]} 11. d4 {[%clk 0:03:00]}  Qc7 {[%clk 0:02:37]} 12. d5 {[%clk 0:03:00]}  c4 {[%clk 0:02:31]} 13. b4 {[%clk 0:03:00]}  cxb3 {[%clk 0:02:30]} 14. axb3 {[%clk 0:03:00]}  Bd7 {[%clk 0:02:29]} 15. Be3 {[%clk 0:02:11]}  Rfc8 {[%clk 0:02:24]} 16. h3 {[%clk 0:02:08]}  Nb7 {[%clk 0:02:19]} 17. b4 {[%clk 0:02:08]}  a5 {[%clk 0:02:17]} 18. Bd3 {[%clk 0:02:07]}  axb4 {[%clk 0:01:55]} 19. Rxa8 {[%clk 0:02:08]}  Rxa8 {[%clk 0:01:55]} 20. cxb4 {[%clk 0:02:08]}  Ra4 {[%clk 0:01:24]} 21. Qb2 {[%clk 0:02:07]}  Ra8 {[%clk 0:01:11]} 22. Nc3 {[%clk 0:02:01]}  Nd8 {[%clk 0:01:02]} 23. Rc1 {[%clk 0:01:58]}  Qb7 {[%clk 0:01:01]} 24. Nd2 {[%clk 0:01:53]}  Nh5 {[%clk 0:00:59]} 25. Nb3 {[%clk 0:01:51]}  Nf4 {[%clk 0:00:58]} 26. Bf1 {[%clk 0:01:51]}  f5 {[%clk 0:00:53]} 27. Na5 {[%clk 0:01:48]}  Qb8 {[%clk 0:00:45]} 28. g3 {[%clk 0:01:28]}  Ng6 {[%clk 0:00:35]} 29. exf5 {[%clk 0:01:27]}  Bxf5 {[%clk 0:00:36]} 30. Nxb5 {[%clk 0:01:08]}  Be4 {[%clk 0:00:35]} 31. Qd2 {[%clk 0:01:04]}  Bf6 {[%clk 0:00:16]} 32. Nc7 {[%clk 0:01:01]}  Ra7 {[%clk 0:00:14]} 33. Bxa7 {[%clk 0:00:47]}  Qxa7 {[%clk 0:00:15]} 34. Nb5 {[%clk 0:00:47]}  Qb6 {[%clk 0:00:14]} 35. Nc6 {[%clk 0:00:45]}  Nf7 {[%clk 0:00:12]} 36. h4 {[%clk 0:00:39]}  h5 {[%clk 0:00:10]} 37. Nc3 {[%clk 0:00:34]}  Bf3 {[%clk 0:00:09]} 38. Be2 {[%clk 0:00:31]}  Bxe2 {[%clk 0:00:08]} 39. Qxe2 {[%clk 0:00:32]}  Nh6 {[%clk 0:00:06]} 40. Qxh5 {[%clk 0:00:31]}  Kh7 {[%clk 0:00:06]} 41. Ne4 {[%clk 0:00:27]}  Qb5 {[%clk 0:00:04]} 42. Ng5+ {[%clk 0:00:26]}  Kg8 {[%clk 0:00:04]} 43. Qxg6 {[%clk 0:00:26]}  Qe2 {[%clk 0:00:02]} 44. Qe8# {[%clk 0:00:20]} 1-0


[Site "https://www.chess.com"]

[Event "Titled Tuesday Blitz December 7 2021"]
[White "Mikhailovsky, Vladimir"]
[Black "Materia, Marco"]
[WhiteFideId "34105414"]
[BlackFideId "45150451"]
[WhiteElo "2409"]
[BlackElo "2622"]
[Result "1-0"]
[Round "11"]
[TimeControl "180+1"]
[Date "2021.12.07"]
[WhiteClock "0:00:11"]
[BlackClock "0:00:46"]

1. e4 {[%clk 0:02:59]}  c5 {[%clk 0:02:59]} 2. d4 {[%clk 0:02:58]}  cxd4 {[%clk 0:02:59]} 3. c3 {[%clk 0:02:59]}  dxc3 {[%clk 0:03:00]} 4. Nxc3 {[%clk 0:02:58]}  Nc6 {[%clk 0:03:00]} 5. Nf3 {[%clk 0:02:59]}  e6 {[%clk 0:03:00]} 6. Bc4 {[%clk 0:02:59]}  Nge7 {[%clk 0:03:00]} 7. Bg5 {[%clk 0:02:59]}  a6 {[%clk 0:02:57]} 8. O-O {[%clk 0:02:52]}  h6 {[%clk 0:02:57]} 9. Bh4 {[%clk 0:02:52]}  g5 {[%clk 0:02:55]} 10. Bg3 {[%clk 0:02:52]}  Ng6 {[%clk 0:02:55]} 11. e5 {[%clk 0:02:48]}  Bg7 {[%clk 0:02:51]} 12. Re1 {[%clk 0:02:48]}  O-O {[%clk 0:02:48]} 13. Bd3 {[%clk 0:02:43]}  Nce7 {[%clk 0:02:25]} 14. h3 {[%clk 0:02:28]}  b5 {[%clk 0:02:21]} 15. Ne4 {[%clk 0:01:55]}  Nf5 {[%clk 0:02:18]} 16. Bh2 {[%clk 0:01:56]}  Bb7 {[%clk 0:02:17]} 17. Nc5 {[%clk 0:01:51]}  Bxf3 {[%clk 0:02:03]} 18. Qxf3 {[%clk 0:01:50]}  Nfh4 {[%clk 0:02:03]} 19. Qe4 {[%clk 0:01:27]}  Qe7 {[%clk 0:02:02]} 20. Rac1 {[%clk 0:01:21]}  Rfc8 {[%clk 0:01:58]} 21. b3 {[%clk 0:01:19]}  Ra7 {[%clk 0:01:54]} 22. b4 {[%clk 0:01:14]}  Rac7 {[%clk 0:01:51]} 23. a4 {[%clk 0:01:11]}  Rxc5 {[%clk 0:01:37]} 24. bxc5 {[%clk 0:01:02]}  Rxc5 {[%clk 0:01:37]} 25. axb5 {[%clk 0:01:00]}  axb5 {[%clk 0:01:37]} 26. Qd4 {[%clk 0:00:52]}  Rd5 {[%clk 0:01:35]} 27. Rc8+ {[%clk 0:00:50]}  Kh7 {[%clk 0:01:34]} 28. Qe3 {[%clk 0:00:46]}  Nf5 {[%clk 0:01:24]} 29. Bxf5 {[%clk 0:00:42]}  exf5 {[%clk 0:01:25]} 30. Qf3 {[%clk 0:00:43]}  Qe6 {[%clk 0:01:23]} 31. Re8 {[%clk 0:00:38]}  Qxe8 {[%clk 0:01:23]} 32. Qxd5 {[%clk 0:00:38]}  b4 {[%clk 0:01:23]} 33. Qb5 {[%clk 0:00:28]}  Qe7 {[%clk 0:01:16]} 34. Rd1 {[%clk 0:00:18]}  f4 {[%clk 0:01:12]} 35. Qxd7 {[%clk 0:00:14]}  Qxd7 {[%clk 0:01:10]} 36. Rxd7 {[%clk 0:00:15]}  Nxe5 {[%clk 0:01:09]} 37. Rb7 {[%clk 0:00:16]}  Nd3 {[%clk 0:01:06]} 38. Kf1 {[%clk 0:00:16]}  Bc3 {[%clk 0:01:01]} 39. f3 {[%clk 0:00:12]}  Kg6 {[%clk 0:00:57]} 40. Bg1 {[%clk 0:00:12]}  Kf5 {[%clk 0:00:57]} 41. Ke2 {[%clk 0:00:10]}  Ke6 {[%clk 0:00:57]} 42. Kxd3 {[%clk 0:00:10]}  f5 {[%clk 0:00:55]} 43. Bc5 {[%clk 0:00:10]}  h5 {[%clk 0:00:53]} 44. Bxb4 {[%clk 0:00:11]}  Bf6 {[%clk 0:00:53]} 45. Kc4 {[%clk 0:00:11]}  g4 {[%clk 0:00:53]} 46. Rb6+ {[%clk 0:00:09]}  Kf7 {[%clk 0:00:52]} 47. Kd5 {[%clk 0:00:09]}  Bg7 {[%clk 0:00:50]} 48. Bd2 {[%clk 0:00:09]}  gxf3 {[%clk 0:00:46]} 49. gxf3 {[%clk 0:00:10]}  Bf6 {[%clk 0:00:46]} 50. Bxf4 {[%clk 0:00:09]}  Bg7 {[%clk 0:00:46]} 51. Rb7+ {[%clk 0:00:09]}  Kg6 {[%clk 0:00:46]} 52. Rxg7+ {[%clk 0:00:10]}  Kxg7 {[%clk 0:00:46]} 53. Ke6 {[%clk 0:00:11]}  Kg6 {[%clk 0:00:46]} 54. h4 {[%clk 0:00:11]}  Kg7 {[%clk 0:00:46]} 55. Kxf5 {[%clk 0:00:11]}  Kf7 {[%clk 0:00:46]} 56. Kg5 {[%clk 0:00:11]} 1-0


[Site "https://www.chess.com"]

[Event "Titled Tuesday Blitz December 7 2021"]
[White "Myshakov, Fyodor"]
[Black "Nenezic, Marko"]
[WhiteFideId "14111284"]
[BlackFideId "912123"]
[WhiteElo "2310"]
[BlackElo "2484"]
[Result "0-1"]
[Round "11"]
[TimeControl "180+1"]
[Date "2021.12.07"]
[WhiteClock "0:01:56"]
[BlackClock "0:01:52"]

1. c4 {[%clk 0:02:48]}  Nf6 {[%clk 0:02:59]} 2. Nc3 {[%clk 0:02:48]}  c5 {[%clk 0:02:58]} 3. Nf3 {[%clk 0:02:48]}  e6 {[%clk 0:02:57]} 4. g3 {[%clk 0:02:48]}  b6 {[%clk 0:02:58]} 5. Bg2 {[%clk 0:02:48]}  Bb7 {[%clk 0:02:58]} 6. O-O {[%clk 0:02:49]}  Be7 {[%clk 0:02:58]} 7. d4 {[%clk 0:02:50]}  cxd4 {[%clk 0:02:59]} 8. Qxd4 {[%clk 0:02:50]}  d6 {[%clk 0:02:59]} 9. b3 {[%clk 0:02:50]}  O-O {[%clk 0:02:57]} 10. Bb2 {[%clk 0:02:50]}  a6 {[%clk 0:02:49]} 11. Rfd1 {[%clk 0:02:49]}  Nbd7 {[%clk 0:02:49]} 12. Rac1 {[%clk 0:02:49]}  Qc7 {[%clk 0:02:49]} 13. e4 {[%clk 0:02:47]}  Rac8 {[%clk 0:02:48]} 14. h4 {[%clk 0:02:46]}  Rfd8 {[%clk 0:02:46]} 15. a4 {[%clk 0:02:39]}  Qb8 {[%clk 0:02:44]} 16. b4 {[%clk 0:02:37]}  Qa8 {[%clk 0:02:40]} 17. Nd2 {[%clk 0:02:33]}  Ne5 {[%clk 0:02:40]} 18. b5 {[%clk 0:02:23]}  Nfg4 {[%clk 0:02:27]} 19. f3 {[%clk 0:02:18]}  d5 {[%clk 0:02:26]} 20. Nb3 {[%clk 0:02:07]}  dxc4 {[%clk 0:02:20]} 21. Qxb6 {[%clk 0:02:06]}  cxb3 {[%clk 0:02:17]} 22. Rxd8+ {[%clk 0:02:04]}  Bxd8 {[%clk 0:02:15]} 23. Qd4 {[%clk 0:02:03]}  Bf6 {[%clk 0:01:53]} 24. fxg4 {[%clk 0:01:56]}  Nf3+ {[%clk 0:01:52]} 0-1


[Site "https://www.chess.com"]

[Event "Titled Tuesday Blitz December 7 2021"]
[White "Navalgund, Niranjan"]
[Black "Nozdrachev, Leonid"]
[WhiteFideId "5030854"]
[BlackFideId "24113433"]
[WhiteElo "2290"]
[BlackElo "2124"]
[Result "1/2-1/2"]
[Round "11"]
[TimeControl "180+1"]
[Date "2021.12.07"]
[WhiteClock "0:00:19"]
[BlackClock "0:00:04"]

1. d4 {[%clk 0:03:00]}  d6 {[%clk 0:02:57]} 2. Nf3 {[%clk 0:02:57]}  Nf6 {[%clk 0:02:57]} 3. g3 {[%clk 0:02:50]}  g6 {[%clk 0:02:55]} 4. Bg2 {[%clk 0:02:50]}  Bg7 {[%clk 0:02:56]} 5. O-O {[%clk 0:02:51]}  O-O {[%clk 0:02:56]} 6. a4 {[%clk 0:02:51]}  Bf5 {[%clk 0:02:55]} 7. Nh4 {[%clk 0:02:49]}  Bc8 {[%clk 0:02:50]} 8. a5 {[%clk 0:02:50]}  Na6 {[%clk 0:02:36]} 9. Nc3 {[%clk 0:02:43]}  c5 {[%clk 0:02:33]} 10. dxc5 {[%clk 0:02:43]}  Nxc5 {[%clk 0:02:33]} 11. a6 {[%clk 0:02:42]}  Qb6 {[%clk 0:01:57]} 12. Ra2 {[%clk 0:02:11]}  Nxa6 {[%clk 0:01:51]} 13. Be3 {[%clk 0:02:11]}  Nc5 {[%clk 0:01:48]} 14. Na4 {[%clk 0:02:11]}  Qb5 {[%clk 0:01:36]} 15. Nc3 {[%clk 0:02:04]}  Qb6 {[%clk 0:01:30]} 16. Qb1 {[%clk 0:02:03]}  Ng4 {[%clk 0:01:23]} 17. Na4 {[%clk 0:02:03]}  Qb5 {[%clk 0:01:09]} 18. Bxc5 {[%clk 0:01:55]}  dxc5 {[%clk 0:01:09]} 19. h3 {[%clk 0:01:55]}  Nh6 {[%clk 0:01:02]} 20. Nc3 {[%clk 0:01:54]}  Bxc3 {[%clk 0:01:00]} 21. bxc3 {[%clk 0:01:55]}  Qxe2 {[%clk 0:00:55]} 22. Re1 {[%clk 0:01:50]}  Qc4 {[%clk 0:00:48]} 23. Rxe7 {[%clk 0:01:49]}  Qxc3 {[%clk 0:00:46]} 24. Qc1 {[%clk 0:01:30]}  Nf5 {[%clk 0:00:42]} 25. Nxf5 {[%clk 0:01:00]}  Bxf5 {[%clk 0:00:43]} 26. Bxb7 {[%clk 0:00:58]}  Rae8 {[%clk 0:00:39]} 27. Ra3 {[%clk 0:00:52]}  Qxa3 {[%clk 0:00:15]} 28. Qxa3 {[%clk 0:00:52]}  Rxe7 {[%clk 0:00:16]} 29. Bg2 {[%clk 0:00:52]}  Bxc2 {[%clk 0:00:13]} 30. Qxc5 {[%clk 0:00:51]}  Re1+ {[%clk 0:00:12]} 31. Kh2 {[%clk 0:00:51]}  Re2 {[%clk 0:00:12]} 32. Qxa7 {[%clk 0:00:42]}  Be4 {[%clk 0:00:12]} 33. Qe7 {[%clk 0:00:37]}  f5 {[%clk 0:00:05]} 34. Qe6+ {[%clk 0:00:34]}  Kg7 {[%clk 0:00:05]} 35. Qe5+ {[%clk 0:00:34]}  Kg8 {[%clk 0:00:04]} 36. Kg1 {[%clk 0:00:19]}  Re1+ {[%clk 0:00:04]} 37. Kh2 {[%clk 0:00:19]}  Re2 {[%clk 0:00:04]} 38. Kg1 {[%clk 0:00:19]}  Re1+ {[%clk 0:00:03]} 39. Kh2 {[%clk 0:00:19]}  Re2 {[%clk 0:00:04]} 1/2-1/2


[Site "https://www.chess.com"]